bitfinex/quotes_ETHUSD_20251028
["timestamp","ask_amount","ask_price","bid_price","bid_amount"]
[1761681873899,0.001,4037.1,4037.0,2.273]
[1761681874100,0.001,4037.1,4036.8,0.405504]
[1761681874625,0.001,4037.1,4035.6,0.002]
[1761681874626,0.30081739,4037.1,4035.6,0.002]
[1761681874808,0.1196,4037.0,4035.9,0.4379]
[1761681875000,2.59670855,4037.0,4036.0,2.47770069]
[1761681875237,2.47730416,4036.7,4035.9,2.47770353]
[1761681875437,2.47730416,4036.7,4035.9,0.4379]
[1761681875636,1.5552,4036.6,4036.1,0.405504]
[1761681875861,0.1196,4037.0,4036.1,0.405504]
[1761681876139,2.47716663,4036.9,4036.2,2.63232838]
[1761681876340,2.47722051,4036.8,4036.2,0.1548]
[1761681876908,2.99747899,4036.8,4036.2,0.1548]
[1761681877104,2.47739924,4036.5,4036.2,0.1548]
[1761681877305,2.47740099,4036.5,4035.9,0.1548]
[1761681877617,4.03260099,4036.5,4035.9,0.1548]
[1761681877932,2.47740099,4036.5,4035.9,0.1548]
[1761681878237,2.99755141,4036.5,4036.1,0.1232]
[1761681878450,2.47745772,4036.4,4036.1,0.1232]
[1761681879432,2.99755759,4036.5,4036.1,0.1232]
[1761681879630,0.52015042,4036.5,4036.1,0.1232]
[1761681879802,2.47737272,4036.6,4036.1,0.1232]
[1761681880006,0.52015042,4036.6,4036.1,0.1232]
[1761681880206,2.47750711,4036.4,4036.1,0.1232]
[1761681880437,2.9975644,4036.5,4036.1,0.1232]
[1761681880608,0.52015042,4036.4,4036.1,0.1232]
[1761681880809,2.9975644,4036.5,4036.1,0.1232]
[1761681881012,2.47757791,4036.2,4036.1,0.1232]
[1761681881232,2.47787404,4035.8,4035.6,0.002]
[1761681881549,2.47778113,4035.9,4035.6,0.002]
[1761681881857,0.97554735,4036.2,4035.6,0.002]
[1761681881858,0.65172713,4036.6,4035.8,0.405504]
[1761681882158,2.47732042,4036.7,4035.6,0.002]
[1761681882159,2.07621633,4036.7,4035.6,2.274]
[1761681882314,4.55351014,4036.7,4035.7,0.405504]
[1761681882641,2.47753023,4036.3,4035.7,2.88337804]
[1761681882843,2.47758366,4036.2,4035.7,0.405504]
[1761681883045,0.52101633,4036.4,4035.6,2.274]
[1761681883348,2.47738864,4036.6,4035.6,5.18963582]
[1761681883551,1.5552,4036.5,4035.6,2.91763582]
[1761681883711,2.4775276,4036.3,4035.6,2.91763582]
[1761681884141,2.47759105,4036.2,4035.6,0.002]
[1761681884308,2.4776441,4036.1,4035.6,0.002]
[1761681884934,0.52101633,4036.2,4035.6,0.002]
[1761681885133,2.47788487,4035.7,4035.6,0.002]
[1761681885539,2.47800768,4035.5,4035.4,0.002]
[1761681885712,2.47800768,4035.5,4034.3,1e-08]
[1761681885713,2.47868332,4034.4,4034.3,1e-08]
[1761681885913,2.47868332,4034.4,4029.4,0.05]
[1761681885914,1.5552,4033.2,4030.8,0.2167]
[1761681886171,2.4798253,4032.6,4030.8,0.2167]
[1761681886367,1.5552,4032.4,4030.8,0.2167]
[1761681886528,2.271,4032.5,4030.0,0.1654]
[1761681886529,1.5552,4032.2,4030.0,0.1654]
[1761681886870,0.1028,4031.3,4030.4,0.2167]
[1761681887368,2.1128,4031.3,4030.0,0.1654]
[1761681887518,2.1128,4031.3,4029.6,0.1654]
[1761681888226,16.24815806,4031.3,4029.3,0.4377]
[1761681888423,2.1128,4031.3,4029.3,0.4377]
[1761681888654,1.5552,4031.3,4029.4,0.1548]
[1761681888943,4.282,4031.3,4029.4,0.1548]
[1761681889145,4.282,4031.3,4029.3,0.1548]
[1761681889646,2.7288,4031.3,4030.3,0.2167]
[1761681889850,2.7288,4031.3,4030.4,0.405504]
[1761681889851,2.274,4031.3,4030.4,0.405504]
[1761681890013,0.227,4031.8,4030.4,0.405504]
[1761681890014,0.227,4031.9,4031.1,0.1528]
[1761681890219,2.283,4032.0,4031.2,0.42812331]
[1761681890417,2.283,4032.0,4031.2,0.02261931]
[1761681890418,2.48058938,4031.3,4031.2,0.02261931]
[1761681890670,1.5552,4031.2,4028.6,0.1654]
[1761681890818,0.2032,4029.4,4028.2,0.28100319]
[1761681891019,3.8682,4029.3,4028.2,0.11560319]
[1761681891228,4.323,4029.3,4028.2,0.11560319]
[1761681891451,0.4548,4029.2,4028.2,0.11560319]
[1761681891653,0.227,4029.6,4028.2,0.28100319]
[1761681891855,2.314,4029.5,4028.4,0.124]
[1761681892157,0.227,4029.9,4029.1,0.20221943]
[1761681892330,0.227,4030.2,4029.5,0.405504]
[1761681892539,0.227,4031.0,4030.0,2.48135583]
[1761681892864,1.5552,4030.9,4030.1,2.72944531]
[1761681893082,0.227,4031.0,4030.5,2.4810487]
[1761681893228,0.227,4031.0,4030.2,0.43031666]
[1761681893229,2.546,4031.0,4030.3,2.48117568]
[1761681893431,0.5625,4032.5,4030.3,0.4377]
[1761681893682,0.5625,4032.5,4030.2,0.1528]
[1761681893683,1.487,4032.4,4031.2,2.48059865]
[1761681893849,0.5625,4032.5,4031.2,2.48059865]
[1761681893850,0.1077,4032.5,4031.8,2.48025397]
[1761681894052,0.1077,4032.5,4031.3,2.48053912]
[1761681894053,0.4548,4032.9,4031.6,0.405504]
[1761681894225,0.4548,4032.9,4031.2,0.405504]
[1761681894226,1.16651381,4033.9,4031.9,2.48022024]
[1761681894430,0.227,4034.9,4033.9,0.405504]
[1761681894431,0.51444415,4034.3,4033.9,0.405504]
[1761681894736,0.65206966,4034.7,4034.1,0.405504]
[1761681895067,0.65206966,4035.0,4034.5,0.405504]
[1761681895424,0.2271,4034.9,4034.1,0.405504]
[1761681895670,0.65206966,4034.9,4034.1,0.405504]
[1761681895825,0.65206966,4034.9,4034.0,0.1528]
[1761681895826,0.65206966,4035.0,4034.2,0.4377]
[1761681896036,0.65206966,4034.9,4034.0,0.1528]
[1761681896230,0.65206966,4035.0,4034.2,0.405504]
[1761681896430,0.65206966,4035.1,4034.3,0.4377]
[1761681896662,0.86942622,4035.3,4034.3,0.4377]
[1761681896663,0.65206966,4035.3,4034.9,2.47835787]
[1761681896967,0.65206966,4035.2,4034.1,0.1528]
[1761681897179,0.65206966,4035.0,4034.1,0.1528]
[1761681897330,0.65206966,4034.8,4034.1,0.1528]
[1761681897534,4.0337204,4034.7,4033.2,0.4377]
[1761681897858,1.53136074,4034.5,4032.7,0.4377]
[1761681898161,1.53136074,4034.5,4032.8,3.09473605]
[1761681898162,0.4525,4034.4,4032.8,3.09473605]
[1761681898677,0.4525,4034.4,4031.9,0.4377]
[1761681898844,0.5,4034.1,4032.3,2.47994884]
[1761681899050,0.5,4034.1,4032.3,2.47994225]
[1761681899233,0.5,4034.1,4032.4,0.4377]
[1761681899437,0.51444415,4034.5,4031.9,0.4377]
[1761681899438,0.6795,4034.0,4031.9,0.4377]
[1761681899683,2.7705,4033.9,4031.7,0.1654]
[1761681899900,2.47952443,4033.1,4030.8,0.1654]
[1761681900102,4.03483199,4032.9,4031.3,2.4805532]
[1761681900396,1.5552,4032.8,4030.9,0.4377]
[1761681900579,0.51424188,4032.9,4031.0,0.4377]
[1761681900778,1.30443558,4033.8,4030.3,2.48117561]
[1761681900779,2.32,4032.8,4030.3,2.48117561]
[1761681901014,2.32,4032.8,4029.4,2.48174742]
[1761681901166,7.561554,4032.5,4029.6,0.26984474]
[1761681901360,0.858004,4032.7,4029.0,7.61802931]
[1761681901361,1.960704,4032.2,4029.0,7.61802931]
[1761681901589,0.1146,4029.1,4029.0,7.61802931]
[1761681902281,0.5694,4029.1,4029.0,7.61802931]
[1761681902687,2.1246,4029.1,4029.0,7.61802931]
[1761681903559,4.44270946,4029.0,4028.8,0.003]
[1761681903779,4.44314075,4028.3,4028.2,0.11560319]
[1761681903963,6.76714075,4028.3,4028.2,0.11560319]
[1761681904274,4.89794075,4028.3,4028.2,0.11560319]
[1761681904475,7.22194075,4028.3,4028.2,0.11560319]
[1761681904799,2.88843385,4027.5,4027.0,0.2483]
[1761681905000,4.44388047,4027.1,4027.0,0.0228]
[1761681905203,1.5552,4027.1,4027.0,0.0228]
[1761681905503,5.6195,4027.1,4027.0,0.0228]
[1761681905704,3.2955,4027.1,4027.0,0.0228]
[1761681905932,8.51118047,4027.1,4027.0,0.0228]
[1761681906067,8.51118047,4027.1,4027.0,1e-08]
[1761681906068,12.14931609,4027.1,4027.0,1e-08]
[1761681906272,18.72162209,4027.1,4027.0,1e-08]
[1761681906594,1.5552,4027.0,4025.6,0.00252525]
[1761681906776,1.28033397,4026.6,4025.6,0.00252525]
[1761681907105,1.29,4027.1,4025.6,0.00252525]
[1761681907106,0.51325362,4026.7,4025.6,0.00252525]
[1761681907399,0.4458,4027.1,4025.6,0.00252525]
[1761681907400,2.332,4026.6,4025.6,0.00252525]
[1761681907628,0.2209,4025.7,4025.6,0.00252525]
[1761681907833,1.7761,4025.7,4025.6,0.00252525]
[1761681908142,1.28033397,4027.3,4025.6,0.00252525]
[1761681908430,0.3406,4027.6,4025.7,0.405504]
[1761681908640,2.84798603,4027.7,4025.7,0.405504]
[1761681908937,0.51098603,4027.6,4025.9,0.405504]
[1761681909250,2.337,4027.5,4025.6,0.00252525]
[1761681909392,0.78028603,4027.6,4025.8,0.405504]
[1761681909393,0.51098603,4027.6,4025.8,0.405504]
[1761681909747,2.13212632,4028.8,4025.8,0.405504]
[1761681909748,0.2693,4027.5,4025.8,0.405504]
[1761681910045,1.972,4027.5,4025.9,0.4655]
[1761681910189,0.405504,4027.3,4025.6,0.00252525]
[1761681910392,0.405504,4027.1,4025.6,0.00252525]
[1761681910626,0.51098603,4027.0,4025.6,0.00252525]
[1761681910811,3.9022,4027.0,4025.6,0.00252525]
[1761681911013,2.33248603,4026.9,4025.6,0.00252525]
[1761681911323,2.33248603,4026.9,4025.6,0.46802525]
[1761681911324,2.347,4026.8,4025.6,0.46802525]
[1761681911497,0.51098603,4026.8,4025.6,0.46802525]
[1761681911695,2.347,4026.8,4025.6,0.46802525]
[1761681911924,0.2239,4027.4,4025.6,0.46802525]
[1761681911925,2.347,4026.9,4025.6,0.46802525]
[1761681912125,0.51098603,4027.1,4025.7,0.29522362]
[1761681912426,0.2663,4027.3,4025.7,0.871004]
[1761681912724,0.2663,4027.3,4025.8,0.4655]
[1761681912891,0.124,4026.0,4025.6,0.00252525]
[1761681913092,2.347,4026.3,4025.6,0.00252525]
[1761681913527,0.1705,4025.7,4025.6,0.00252525]
[1761681913719,1.7257,4025.7,4025.6,0.00252525]
[1761681913915,4.52594004,4025.7,4025.6,0.00252525]
[1761681914105,2.55288603,4025.7,4025.6,0.00252525]
[1761681914303,2.351,4025.8,4025.6,0.00252525]
[1761681914505,2.352,4025.8,4025.6,0.00252525]
[1761681914707,4.81352607,4025.7,4025.6,0.00252525]
[1761681915092,2.4843486,4025.2,4025.1,0.002]
[1761681915239,2.4843486,4025.2,4024.3,2.51877658]
[1761681915240,1.5552,4025.0,4024.3,2.51877658]
[1761681915539,5.9318692,4025.2,4022.3,0.231]
[1761681915540,1.28068945,4024.8,4022.3,0.231]
[1761681915740,1.28068945,4024.6,4022.3,0.231]
[1761681916039,0.51098603,4024.5,4022.3,0.231]
[1761681916241,2.98497685,4026.2,4022.3,0.231]
[1761681916242,2.357,4024.4,4023.0,0.4655]
[1761681916441,0.51098603,4024.8,4023.0,0.4655]
[1761681916648,2.359,4024.7,4023.1,0.29752737]
[1761681916944,0.51098603,4025.0,4023.2,2.51040189]
[1761681917166,0.51098603,4025.3,4023.1,0.405504]
[1761681917338,2.073,4025.2,4023.1,0.405504]
[1761681917542,2.361,4025.1,4023.3,0.405504]
[1761681917755,2.361,4025.0,4023.6,0.405504]
[1761681917991,2.36,4025.0,4024.5,2.4847215]
[1761681918920,2.359,4025.2,4023.8,0.405504]
[1761681919067,0.51154249,4025.6,4023.8,0.405504]
[1761681919419,2.359,4025.5,4024.4,2.48483085]
[1761681919730,0.51154249,4026.4,4023.7,0.231]
[1761681919731,0.51154249,4025.6,4024.8,2.48458524]
[1761681919877,2.87052247,4025.7,4024.9,2.48447457]
[1761681920071,1.28068945,4027.1,4026.0,2.48384568]
[1761681920319,0.73591964,4027.4,4025.6,0.231]
[1761681920470,2.358,4027.5,4026.5,2.48349203]
[1761681920667,2.358,4027.5,4027.0,2.48317957]
[1761681920981,1.38088945,4029.0,4027.4,0.231]
[1761681921183,1.79322094,4029.4,4027.5,0.02482929]
[1761681921509,0.51253149,4029.8,4027.6,0.02482868]
[1761681921673,2.359,4029.9,4028.2,2.48249042]
[1761681921878,2.359,4029.9,4027.5,0.4655]
[1761681921879,2.458,4029.9,4027.5,0.4655]
[1761681922170,2.48219003,4028.8,4027.5,0.4655]
[1761681922370,2.36,4028.8,4027.4,0.231]
[1761681922609,2.36,4028.8,4027.0,0.2233]
[1761681922949,2.361,4028.7,4027.0,0.2233]
[1761681923122,2.361,4028.7,4027.4,0.124]
[1761681923289,0.124,4028.3,4028.2,2.48249838]
[1761681923489,0.124,4028.3,4027.6,0.124]
[1761681923684,0.124,4028.3,4028.2,2.48249838]
[1761681923905,0.51253149,4029.7,4028.2,0.4418]
[1761681924227,0.124,4029.7,4028.4,0.405504]
[1761681924387,0.0992,4029.9,4027.7,0.4418]
[1761681924586,0.124,4028.7,4028.3,2.48238281]
[1761681924787,0.1155,4028.9,4027.3,0.4418]
[1761681925029,3.78783498,4029.3,4027.4,0.4418]
[1761681925238,2.87653149,4029.2,4027.4,0.4418]
[1761681925445,1.89222094,4029.1,4026.7,0.4418]
[1761681925595,2.48219028,4028.7,4026.8,2.48334818]
[1761681925937,0.51253149,4028.6,4027.0,0.4418]
[1761681926090,0.51253149,4028.5,4028.0,2.48257034]
[1761681926410,1.28068945,4029.2,4027.8,0.4418]
[1761681926411,0.51253149,4028.4,4027.8,0.4418]
[1761681926587,0.51253149,4029.1,4027.8,0.4418]
[1761681926784,0.1,4030.2,4027.9,0.405504]
[1761681926785,0.51253149,4029.0,4027.9,0.405504]
[1761681927092,0.51253149,4029.6,4029.4,2.48170357]
[1761681927431,0.51253149,4029.5,4028.2,0.405504]
[1761681927639,0.099,4030.1,4028.5,2.48229615]
[1761681927640,0.51253149,4029.4,4028.5,2.48229615]
[1761681927934,0.51253149,4029.3,4028.3,0.3329864]
[1761681928225,0.099,4030.1,4027.9,0.405504]
[1761681928226,0.51253149,4029.2,4027.9,0.405504]
[1761681928425,0.51253149,4029.1,4029.0,2.48200546]
[1761681928635,0.001,4030.2,4029.2,0.405504]
[1761681928636,0.51695436,4029.7,4029.2,0.405504]
[1761681928790,0.001,4030.2,4030.1,2.481328]
[1761681928990,0.5180545,4030.2,4028.4,0.4418]
[1761681929190,0.8604183,4029.8,4028.4,0.4418]
[1761681929395,0.5170545,4029.7,4028.5,0.405504]
[1761681929624,0.5170545,4029.6,4028.7,2.48219028]
[1761681929922,0.001,4030.2,4028.8,0.77474943]
[1761681929923,0.5170545,4029.5,4028.8,0.77474943]
[1761681930131,0.001,4030.2,4028.8,0.77474943]
[1761681930132,0.8614183,4030.2,4029.0,2.48199522]
[1761681930330,1.37864924,4030.1,4028.8,0.4418]
[1761681930534,1.37864924,4030.0,4029.0,2.48200534]
[1761681930737,0.51823094,4029.9,4029.1,2.4819412]
[1761681930938,0.51823094,4029.9,4014.4,0.071]
[1761681930939,2.89423094,4029.8,4028.2,0.4418]
[1761681931137,0.8604183,4029.5,4027.7,2.375]
[1761681931437,0.8604183,4029.3,4028.0,2.48256185]
[1761681931735,0.8604183,4029.3,4027.6,0.4418]
[1761681931736,0.8604183,4029.0,4027.9,2.48262998]
[1761681931944,0.51823094,4028.9,4028.0,0.4418]
[1761681932106,1.70758593,4030.0,4028.0,0.4418]
[1761681932107,0.51823094,4028.8,4028.0,0.4418]
[1761681932303,0.51823094,4028.7,4028.0,0.4418]
[1761681932603,0.8604183,4029.4,4028.7,2.48218384]
[1761681932803,0.8604183,4029.4,4028.8,2.48210387]
[1761681932804,0.51883328,4029.3,4028.8,2.48210387]
[1761681933050,0.51883328,4029.3,4028.0,2.9244163]
[1761681933051,0.51883328,4029.2,4028.0,0.4418]
[1761681933205,0.51883328,4029.1,4028.1,2.48256001]
[1761681933404,1.28068945,4029.5,4028.6,2.4822135]
[1761681933405,0.51883328,4029.0,4028.6,2.4822135]
[1761681933652,0.51883328,4028.9,4028.3,2.48239529]
[1761681933940,0.51883328,4028.8,4028.6,2.48224854]
[1761681934153,0.51883328,4028.7,4028.6,2.48224854]
[1761681934377,0.51883328,4028.7,4028.0,0.4418]
[1761681934649,0.51883328,4028.7,4027.8,2.378]
[1761681934650,0.51883328,4028.6,4028.2,2.48249516]
[1761681934849,1.70758593,4029.8,4029.4,2.48175907]
[1761681934850,0.8604183,4029.5,4029.4,2.48175907]
[1761681935003,0.001,4030.2,4029.4,2.88726307]
[1761681935205,0.5194331,4030.1,4029.0,0.2233]
[1761681935438,0.124,4030.0,4029.9,2.48145115]
[1761681935650,0.001,4030.2,4030.1,2.481328]
[1761681936152,0.001,4030.2,4030.1,4.08542319]
[1761681936304,0.001,4030.2,4030.1,4.18460991]
[1761681936505,1.50338945,4032.0,4030.1,4.18460991]
[1761681936506,0.5194331,4031.6,4030.6,2.88652419]
[1761681936736,0.5194331,4032.1,4030.6,5.26252419]
[1761681936966,0.5194331,4032.0,4030.6,5.70432419]
[1761681937268,0.2224,4032.4,4030.6,8.2335872]
[1761681937269,0.5194331,4032.4,4030.6,8.2335872]
[1761681937557,0.8604183,4032.9,4030.6,8.2335872]
[1761681937558,0.5194331,4032.8,4030.6,8.2335872]
[1761681937760,0.5194331,4032.7,4030.6,8.2335872]
[1761681937907,0.5194331,4032.6,4030.6,8.2335872]
[1761681938258,0.5194331,4032.8,4030.6,8.2335872]
[1761681938411,2.47973723,4032.7,4030.6,8.2335872]
[1761681938617,0.5194331,4032.7,4030.6,8.2335872]
[1761681938913,0.6208331,4032.6,4030.6,8.2305872]
[1761681939117,0.22,4032.1,4030.6,8.2305872]
[1761681939819,0.22,4032.1,4030.6,7.25652419]
[1761681940019,2.80272419,4032.1,4030.6,2.88652419]
[1761681940432,0.3226,4032.1,4030.6,2.88652419]
[1761681940630,0.3226,4032.1,4030.6,2.48102019]
[1761681940833,0.3226,4032.1,4030.6,2.88652419]
[1761681941055,0.3226,4032.1,4030.6,4.88922419]
[1761681941259,3.76023863,4033.0,4030.7,1.960704]
[1761681941260,2.07229566,4032.4,4030.7,1.960704]
[1761681941445,0.9763183,4033.7,4032.1,1.960704]
[1761681941630,0.9763183,4033.7,4032.1,0.405504]
[1761681941631,0.4373,4033.7,4032.1,0.405504]
[1761681941837,0.4373,4033.7,4030.6,0.97443664]
[1761681941838,0.1122,4032.2,4030.9,1.38]
[1761681942026,0.1122,4032.2,4030.9,0.28019366]
[1761681942273,0.0991,4032.1,4031.1,2.48069883]
[1761681942439,0.0991,4032.1,4030.6,1.5552]
[1761681942827,0.0991,4032.1,4030.5,2.6158]
[1761681943051,2.48024404,4031.9,4030.8,2.48088436]
[1761681943266,0.61665142,4032.1,4031.1,2.48070596]
[1761681943487,0.1122,4032.2,4031.4,2.4805161]
[1761681943768,0.1122,4032.2,4030.9,2.48082502]
[1761681943965,0.1122,4032.2,4031.3,2.48056312]
[1761681944174,0.2113,4032.2,4030.7,0.405504]
[1761681944346,0.2113,4032.2,4030.6,2.384]
[1761681944663,2.48041822,4031.6,4030.6,2.384]
[1761681944867,2.48041822,4031.6,4030.6,4.86500352]
[1761681945040,2.57920406,4032.1,4030.6,2.384]
[1761681945256,2.48033655,4031.8,4030.1,0.2253]
[1761681945461,1.5552,4031.9,4030.1,0.002]
[1761681945653,2.48091804,4030.8,4030.1,0.002]
[1761681945860,2.48061384,4031.3,4030.2,2.48126643]
[1761681946061,2.48071549,4031.1,4030.1,0.002]
[1761681946281,0.0995,4031.0,4030.1,0.002]
[1761681946485,0.124,4030.5,4030.1,0.2378]
[1761681946781,0.51829601,4031.5,4030.1,1.01438083]
[1761681947078,0.124,4030.9,4030.6,2.48096559]
[1761681947243,0.124,4030.9,4030.7,2.48095149]
[1761681947844,0.124,4030.9,4030.3,2.48120487]
[1761681948048,0.1371,4031.0,4030.1,2.48332607]
[1761681948257,0.124,4030.5,4030.1,0.002]
[1761681948449,0.124,4030.5,4030.3,2.48117701]
[1761681948648,0.1371,4031.0,4030.1,0.2378]
[1761681948649,0.51829601,4030.9,4030.1,0.002]
[1761681948907,0.124,4030.5,4030.3,2.48120458]
[1761681949382,0.51829601,4030.4,4030.3,2.48120458]
[1761681949688,1.28068945,4031.4,4030.3,2.48120458]
[1761681949689,0.124,4031.3,4030.6,2.48102019]
[1761681949845,1.28068945,4032.0,4031.1,2.88621646]
[1761681949846,0.64598078,4031.6,4031.1,2.88621646]
[1761681950050,0.52215279,4031.9,4031.8,2.48028176]
[1761681950253,0.52215279,4031.9,4031.3,2.38]
[1761681950494,0.52215279,4031.8,4031.7,2.88584727]
[1761681951010,0.52215279,4032.4,4032.3,2.4799742]
[1761681951150,0.52215279,4032.4,4031.7,0.977004]
[1761681951350,0.52215279,4032.3,4032.2,2.48003525]
[1761681951783,0.52215279,4032.3,4032.2,3.33303925]
[1761681951955,0.52215279,4032.3,4032.2,3.45623925]
[1761681952278,0.52215279,4032.3,4031.9,2.379]
[1761681952279,0.52215279,4032.3,4031.9,0.124]
[1761681952479,0.1232,4032.6,4031.9,0.124]
[1761681952480,0.52215279,4032.2,4032.0,2.92765873]
[1761681952729,0.8604183,4032.9,4032.5,2.4798512]
[1761681952928,0.52305769,4032.8,4032.6,2.47977567]
[1761681953223,0.52305769,4032.7,4032.6,2.47978971]
[1761681953386,0.52305769,4032.7,4032.6,2.92728971]
[1761681953586,0.52305769,4032.7,4031.5,0.2358]
[1761681953825,0.124,4031.7,4031.1,0.4475]
[1761681954025,0.52305769,4031.6,4030.3,0.52003277]
[1761681954321,1.28068945,4032.3,4030.6,2.48097412]
[1761681954322,0.8604183,4031.4,4030.6,2.48097412]
[1761681954624,0.52305769,4031.3,4030.4,2.38]
[1761681954932,0.52305769,4031.2,4030.6,2.48100804]
[1761681955083,0.52305769,4031.1,4030.4,4.86112088]
[1761681955283,0.52305769,4031.0,4030.7,2.48093756]
[1761681955498,0.52305769,4030.9,4030.8,2.48089709]
[1761681955701,0.52305769,4030.9,4030.8,3.40740024]
[1761681955989,0.52305769,4031.5,4030.9,0.405504]
[1761681956182,0.8604183,4032.0,4031.3,2.48058938]
[1761681956183,0.52264929,4031.4,4031.3,2.48058938]
[1761681956991,0.52264929,4031.4,4031.1,2.48069666]
[1761681956992,0.52264929,4031.4,4031.1,0.405504]
[1761681957182,0.52264929,4031.3,4031.1,0.405504]
[1761681957379,0.8604183,4031.8,4031.3,2.48058736]
[1761681957617,0.52250708,4031.7,4030.3,0.4475]
[1761681957920,0.65310319,4031.3,4030.3,0.67155]
[1761681958119,0.65310319,4031.1,4030.6,2.480985]
[1761681958340,0.52250708,4031.0,4030.4,2.377]
[1761681958491,1.17561027,4030.9,4030.4,2.377]
[1761681958833,0.52250708,4030.8,4030.7,2.88646264]
[1761681958987,0.52250708,4030.8,4030.7,2.48095864]
[1761681959322,0.52250708,4030.8,4030.7,0.4475]
[1761681959795,0.52250708,4030.8,4030.4,2.377]
[1761681960118,0.52250708,4030.7,4030.4,2.377]
[1761681960340,0.52250708,4030.6,4030.1,0.6853]
[1761681960543,0.65310319,4030.4,4030.1,0.002]
[1761681960708,1.41708945,4030.2,4030.1,0.002]
[1761681960908,2.61766643,4030.2,4030.1,0.002]
[1761681961207,2.4814017,4030.0,4029.7,0.002]
[1761681961426,3.78781368,4029.8,4029.7,0.002]
[1761681961627,3.00380491,4029.8,4029.7,0.002]
[1761681961805,3.10380491,4029.8,4029.7,0.002]
[1761681962001,1.5552,4029.7,4027.8,0.2358]
[1761681962215,0.65280263,4028.6,4027.8,0.2358]
[1761681962415,0.52229218,4028.5,4027.9,0.70888]
[1761681962620,0.52229218,4028.4,4027.9,0.70888]
[1761681962946,0.52229218,4028.3,4028.2,2.48249838]
[1761681963149,0.52229218,4028.3,4027.9,0.26138]
[1761681963314,0.52229218,4028.2,4027.8,0.2358]
[1761681963509,0.65280263,4028.0,4027.4,0.2358]
[1761681963709,0.65280263,4028.0,4027.2,0.2358]
[1761681963710,0.65280263,4027.6,4027.2,0.2358]
[1761681964042,0.52229218,4027.5,4027.0,0.124]
[1761681964207,0.124,4027.7,4027.0,0.124]
[1761681964208,0.52229218,4027.4,4027.0,0.124]
[1761681964404,0.52229218,4027.3,4026.8,0.2358]
[1761681964606,0.52229218,4027.2,4026.6,0.124]
[1761681964839,0.124,4027.0,4026.3,0.124]
[1761681965044,0.124,4026.8,4026.1,0.124]
[1761681965261,0.124,4026.4,4025.7,0.124]
[1761681965556,0.52229218,4026.7,4024.8,2.7203895]
[1761681965557,2.48369104,4026.3,4024.8,2.7203895]
[1761681965707,0.52229218,4026.2,4025.3,2.48423255]
[1761681965905,0.65280263,4026.3,4025.3,2.48423255]
[1761681965906,0.65280263,4026.3,4025.3,2.48422768]
[1761681966120,2.379,4026.2,4025.4,2.4842142]
[1761681966370,2.378,4026.8,4026.2,2.48373155]
[1761681966644,0.65280263,4027.6,4025.5,0.405504]
[1761681966950,1.82338593,4028.7,4025.1,1.5552]
[1761681966951,0.51810082,4028.0,4026.7,0.2358]
[1761681967134,0.65280263,4028.1,4025.7,0.405504]
[1761681967337,0.65280263,4028.0,4025.7,2.93151844]
[1761681967643,0.65280263,4027.7,4026.2,2.48367031]
[1761681967859,2.48316913,4027.2,4025.7,0.4475]
[1761681968021,0.51810082,4027.4,4025.9,0.405504]
[1761681968351,0.51810082,4027.4,4025.8,0.4475]
[1761681968352,2.383,4027.4,4026.4,2.48359004]
[1761681968551,2.383,4027.4,4026.5,2.48353273]
[1761681968730,2.383,4027.4,4026.7,2.48341185]
[1761681969052,0.099,4027.8,4026.8,2.48332901]
[1761681969053,2.383,4027.7,4026.8,2.48332901]
[1761681969217,0.75180263,4028.4,4027.4,2.48297199]
[1761681969422,2.382,4028.3,4027.3,2.48300918]
[1761681969752,2.382,4028.3,4027.4,2.48295769]
[1761681969957,2.382,4028.3,4026.6,0.2351]
[1761681969958,2.382,4028.3,4026.6,0.6804]
[1761681970251,2.4828104,4027.7,4026.6,2.48348083]
[1761681970453,1.5552,4027.6,4026.7,2.48340662]
[1761681970653,2.48275766,4027.8,4026.8,2.48333892]
[1761681970957,1.5552,4027.9,4026.2,0.2244]
[1761681971147,1.6542,4027.8,4023.7,12.19165342]
[1761681971346,0.65280263,4027.1,4025.4,2.48421508]
[1761681971561,2.382,4027.0,4024.9,2.48453377]
[1761681971851,2.48340557,4026.8,4025.0,0.29561338]
[1761681972059,4.03868482,4026.6,4024.2,0.2244]
[1761681972354,4.03868482,4026.6,4023.8,3.97518752]
[1761681972355,0.5170634,4026.5,4023.8,3.97518752]
[1761681972518,0.5170634,4026.5,4023.7,0.4453]
[1761681972519,0.405504,4026.2,4023.7,0.4453]
[1761681972723,1.5552,4026.0,4023.5,0.2244]
[1761681972920,2.48444207,4025.1,4023.5,0.2244]
[1761681973159,2.383,4025.0,4023.5,0.2244]
[1761681973355,2.383,4025.0,4023.6,2.70972922]
[1761681973522,2.383,4025.0,4023.7,0.33794292]
[1761681973725,2.383,4025.0,4023.7,0.78324292]
[1761681973941,2.383,4025.0,4023.8,2.48521298]
[1761681974236,2.383,4025.3,4024.7,2.48465199]
[1761681975023,0.099,4026.4,4024.1,0.405504]
[1761681975364,0.87040351,4027.1,4025.8,2.48391775]
[1761681975365,0.124,4025.9,4025.8,2.48391775]
[1761681976037,0.124,4025.9,4025.2,0.124]
[1761681976363,0.124,4025.9,4025.8,2.48397833]
[1761681976547,0.1242,4028.0,4025.8,0.124]
[1761681976548,0.124,4026.5,4025.8,0.124]
[1761681976750,0.1242,4028.0,4026.7,2.48340632]
[1761681977057,0.124,4027.1,4026.4,0.124]
[1761681977258,0.124,4026.8,4026.7,2.48342315]
[1761681977560,0.1242,4028.0,4026.7,0.29805388]
[1761681977759,0.124,4027.1,4026.5,0.4453]
[1761681978059,0.124,4027.1,4026.8,2.48330132]
[1761681978262,0.124,4027.1,4026.5,0.4453]
[1761681978443,0.124,4027.1,4026.6,2.48347656]
[1761681978632,0.124,4027.1,4026.7,2.48341623]
[1761681978829,0.124,4027.1,4026.5,2.48353585]
[1761681978830,0.124,4027.1,4026.8,2.48335178]
[1761681979040,0.124,4027.1,4026.4,0.124]
[1761681979356,0.124,4027.1,4026.4,0.83007491]